[Event "Leca Open 2022"]
[Site "Leca da Palmeira"]
[Date "2022.08.02"]
[Round "5.5"]
[White "Martins, Bruno Andre Leite"]
[Black "Abdisalimov, Abdimalik"]
[Result "0-1"]
[ECO "A45"]
[WhiteElo "2331"]
[BlackElo "2437"]
[Annotator "TA"]
[PlyCount "144"]
[EventDate "2022.08.02"]
[EventType "swiss"]
[EventCountry "POR"]
[SourceTitle "playchess.com"]
[Source "ChessBase"]
[SourceQuality "1"]
[TimeControl "5400+30"]

{[%evp 11,144,-8,12,16,12,14,11,17,13,0,25,11,58,14,14,0,0,-11,-14,-15,-14,-14,-14,-14,-12,-14,-18,-52,-27,-20,-22,-15,-22,-31,-16,-17,-33,-64,-64,-65,-10,-61,-60,-72,-69,-116,-49,-48,-59,-60,-52,-54,-57,-55,-47,-78,-58,-82,-82,-93,-99,-93,-92,-93,-98,-78,-94,-108,-68,-167,-172,-198,-202,-206,-206,-217,-190,-196,-192,-185,-148,-144,-159,-206,-205,-206,-157,-207,-194,-235,-229,-241,-233,-215,-232,-232,-232,-275,-252,-251,-239,-301,-288,-287,-284,-331,-336,-515,-552,-555,-523,-629,-613,-29981,-2863,-2058,-2058,-29966,-29967,-29968,-29968,-29941,-29942,-6027,-6027,-29979,-29980,-29980,-29981,-29981,-29979,-29978,-29979,-29979,-29976]} 1. d4 Nf6 2. Bf4 e6 3. e3 d5 4. Nd2 c5 5. c3 Nc6 6. Ngf3 {[%cal Bg1f3,Bf3e5,Be5d3][%mdl 32]} cxd4 {6...Nh5 is the recent fashion.} 7. exd4 {D02: 1 d4 d5 2 Nf3 sidelines, including 2...Nf6 3 g3 and 2...Nf6 3 Bf4.} Nh5 {[%emt 0:02:54]} 8. Be3 {[%emt 0:10:39]} Bd6 {[%emt 0:00:05]} 9. Ne5 {[%emt 0:00:06] The position is equal.} g6 {[%emt 0:00:04]} 10. Nd3 {[%emt 0:00:16]} f6 {[%emt 0:00:15]} 11. g3 {[%emt 0:08:50]} e5 {[%emt 0:08:22]} (11... O-O $11) 12. dxe5 {[%emt 0:16:20]} fxe5 {[%emt 0:00:07] [#]} 13. c4 $146 {[%emt 0:02:35]} ({Predecessor:} 13. Bg2 e4 14. Nc5 Nf6 15. O-O Qe7 16. Ncb3 Bg4 17. Qc2 O-O 18. Nd4 Rac8 19. h3 {0-1 (40) Ajay,K (2213)-Doshi,M (2343) Abu Dhabi 2019}) 13... Be6 {[%emt 0:00:56]} 14. Nc5 {[%emt 0:14:55]} Bxc5 {[%emt 0:03:16]} 15. Bxc5 {[%emt 0:00:38]} Qa5 {[%emt 0:00:39][%csl LRc4,LRc5]} 16. b4 {[%emt 0:04:43]} Nxb4 {[%emt 0:00:09]} 17. Bxb4 {[%emt 0:07:23]} Qxb4 {[%emt 0:00:56]} 18. Rb1 {[%emt 0:01:23]} Qc5 $36 {[%emt 0:07:52][%mdl 2048] aiming for ...0-0. Black fights for an advantage.} 19. Qa4+ {[%emt 0:13:13]} (19. Bg2 {is interesting.} O-O 20. O-O Nf6 21. cxd5 Bxd5 22. Nb3) 19... Bd7 {[%emt 0:03:23]} 20. Qb4 {[%emt 0:00:50]} Qxb4 {[%emt 0:00:14]} 21. Rxb4 {[%emt 0:00:01]} Bc6 {[%emt 0:00:16]} 22. Bg2 {[%emt 0:07:07]} Nf6 {[%emt 0:00:07]} 23. O-O {[%emt 0:01:25]} O-O-O {[%emt 0:00:31]} 24. Re1 {[%emt 0:04:15]} Rhe8 {[%emt 0:00:30]} 25. cxd5 {[%emt 0:01:26]} Nxd5 {[%emt 0:00:04]} (25... Bxd5 $15 26. Bxd5 Rxd5) 26. Rc4 {[%emt 0:01:57]} (26. Rh4 $11) 26... Kb8 $15 {[%emt 0:00:05]} 27. Nf3 {[%emt 0:00:55]} Nb6 {[%emt 0:01:21]} 28. Rh4 {[%emt 0:00:02]} (28. Rc2 $15 {was preferrable.}) 28... Bxf3 {[%emt 0:00:47]} (28... e4 $17 29. Ng5 Rd2 30. Bxe4 Rxa2) 29. Bxf3 {[%emt 0:00:02]} Re7 {[%emt 0:00:35]} 30. Rhe4 {[%emt 0:00:24]} Rde8 {[%emt 0:01:46]} 31. Rb4 {[%emt 0:01:26]} Rc8 {[%emt 0:02:48]} 32. Rbe4 {[%emt 0:01:07]} Nd7 {[%emt 0:02:08]} 33. R1e2 {[%emt 0:02:49]} Rce8 {[%emt 0:01:00]} 34. Rb4 {[%emt 0:00:40]} Nc5 {[%emt 0:00:35]} 35. a4 {[%emt 0:00:37]} e4 {[%emt 0:00:05]} 36. Bg2 {[%emt 0:00:19]} e3 {[%emt 0:00:40] [#] Strongly threatening ...Nd3.} 37. fxe3 {[%emt 0:00:50]} Rxe3 {[%emt 0:00:01]} 38. Rxe3 {[%emt 0:00:53]} Rxe3 $17 {[%emt 0:00:01][%mdl 4096] Endgame KRB-KRN} 39. Rh4 {[%emt 0:00:31]} h5 {[%emt 0:00:53]} 40. g4 {[%emt 0:00:46]} ({White should play} 40. Kf2 $15 Ra3 41. Bd5) 40... Re1+ $19 {[%emt 0:00:23]} (40... Nxa4 41. gxh5 gxh5 42. Rxa4 $16) 41. Bf1 {[%emt 0:00:21]} Re4 {[%emt 0:00:13]} ({Resist} 41... Nxa4 42. gxh5 gxh5 43. Rxa4 $16) 42. a5 {[%emt 0:00:55]} Nd7 {[%emt 0:09:25]} 43. Bd3 {[%emt 0:00:47]} Rd4 {[%emt 0:01:50]} (43... Rxg4+ 44. Rxg4 hxg4 45. Bxg6 $11) 44. Be2 {[%emt 0:00:32]} Nf6 {[%emt 0:00:01]} 45. a6 {[%emt 0:00:27]} bxa6 {[%emt 0:01:12]} ({Not} 45... Nxg4 46. h3 $17) ({Stronger than} 45... hxg4 46. Rh6 $17) 46. Rh3 {[%emt 0:00:18][%cal Rg4h5]} Nxg4 {[%emt 0:00:15]} 47. Rb3+ {[%emt 0:00:12]} (47. Ra3 $17) 47... Kc7 {[%emt 0:00:07]} 48. Ra3 {[%emt 0:00:51]} Rd6 {[%emt 0:02:28]} 49. h3 {[%emt 0:00:32]} (49. Bxa6 $17 Rd2 50. Bd3) 49... Ne5 {[%emt 0:01:33]} 50. Bxa6 {[%emt 0:00:05]} Rd5 {[%emt 0:00:04]} 51. Kf2 {[%emt 0:00:37]} Kb6 {[%emt 0:00:21]} 52. Be2 {[%emt 0:00:36]} a5 {[%emt 0:00:01]} 53. Ke3 {[%emt 0:00:22]} Nc6 {[%emt 0:00:49]} 54. Bd3 {[%emt 0:00:58]} g5 {[%emt 0:00:51]} 55. Rb3+ {[%emt 0:00:25]} Nb4 {[%emt 0:00:10]} 56. Be4 {[%emt 0:00:33]} Rb5 {[%emt 0:00:01]} 57. Ra3 {[%emt 0:00:23]} Rc5 {[%emt 0:00:11]} 58. Rb3 {[%emt 0:00:37]} Kb5 {[%emt 0:00:08] And now ...a4 would win.} 59. Bg6 {[%emt 0:00:22]} (59. Kd4 $142) 59... a4 {[%emt 0:00:20]} 60. Rb1 {[%emt 0:00:27]} a3 {[%emt 0:00:17]} 61. Be8+ {[%emt 0:00:45]} Ka5 {[%emt 0:00:02] ...Re5+ is the strong threat.} 62. Rb3 {[%emt 0:00:25]} a2 {[%emt 0:00:11]} (62... Nc2+ $142 63. Kd2 a2 64. Rc3 Rd5+ 65. Rd3 Nb4 66. Rxd5+ Nxd5 67. Kd3 a1=Q 68. Ke4 Nf6+ 69. Kf5 Nxe8 70. Ke4 Qe1+ 71. Kd5 Nf6+ 72. Kd6 Qe4 73. h4 gxh4 74. Kc7 Qe7+ 75. Kb8 Kb6 76. Kc8 Qf8#) 63. Ra3+ {[%emt 0:00:04]} Kb6 {[%emt 0:00:01]} 64. Kd2 {[%emt 0:00:21]} Rd5+ {[%emt 0:00:38]} 65. Kc1 {[%emt 0:00:26]} Rd3 {[%emt 0:00:50]} 66. Ra4 {[%emt 0:00:43]} Rb3 {[%emt 0:00:16]} 67. Bg6 {[%emt 0:00:57]} Rxh3 {[%emt 0:02:39] ( -> ...Rh1+)} 68. Kb2 {[%emt 0:00:28] [#]} Rh1 $1 {[%emt 0:01:28] Black mates.} 69. Bxh5 {[%emt 0:00:36]} (69. Be8 Rb1+) 69... Rb1+ {[%emt 0:00:21]} 70. Kc3 {[%emt 0:00:02]} a1=Q+ {[%emt 0:00:11]} 71. Rxa1 {[%emt 0:00:11]} Rxa1 {[%emt 0:00:04]} 72. Kxb4 {[%emt 0:00:04]} Rc1 {[%emt 0:00:20] Weighted Error Value: White=0.20 (precise) /Black=0.09 (flawless)} 0-1

[Event "Leca Open 2022"]
[Site "Leca da Palmeira"]
[Date "2022.08.02"]
[Round "5.6"]
[White "Nigmatov, Ortik"]
[Black "Prieto Martin, Alfonso"]
[Result "1-0"]
[ECO "B29"]
[WhiteElo "2437"]
[BlackElo "2264"]
[Annotator "TA"]
[PlyCount "93"]
[EventDate "2022.08.02"]
[EventType "swiss"]
[EventCountry "POR"]
[SourceTitle "playchess.com"]
[Source "ChessBase"]
[SourceQuality "1"]
[TimeControl "5400+30"]

{[%evp 13,93,60,53,58,51,61,66,20,65,27,51,41,45,53,99,82,116,110,108,97,90,92,92,93,132,127,126,118,117,111,123,115,114,114,150,154,149,87,87,84,91,73,84,73,64,50,333,275,333,333,357,342,427,395,567,562,691,526,1161,1152,1103,1076,1034,1020,962,720,1303,1132,1144,1070,5775,5506,5210,5122,2624,1557,29982,29983,29981,29982,29990,29991]} 1. e4 c5 2. Nf3 Nf6 3. e5 Nd5 4. Nc3 e6 5. Ne4 f5 6. Nc3 Nc6 {6...Ne7 is more advanced technology.} 7. Nxd5 exd5 8. d4 {B29: Sicilian: 2 Nf3 Nf6 (Nimzowitsch Variation).} d6 9. Bf4 cxd4 {[#] aiming for ...dxe5.} 10. a3 {[#]} ({Much worse is} 10. exd6 Bxd6 11. Bxd6 Qxd6 $11) (10. Qe2 $14) 10... Be7 $146 ({Predecessor:} 10... dxe5 11. Nxe5 g6 12. Qe2 Be7 13. Qb5 Qd6 14. Nxc6 Qxc6 15. Be5 O-O 16. O-O-O Bd7 {½-½ (50) Blauert,J (2015)-Hohlbein,M ICCF email 2016}) 11. Qd2 (11. exd6 {keeps more tension.} Bxd6 12. Qe2+ Kf7 13. Bxd6 Qxd6 14. O-O-O) 11... O-O 12. exd6 Bxd6 13. O-O-O a6 (13... Bc5 $14 {might be stronger.}) 14. Nxd4 $16 Nxd4 15. Qxd4 Be6 16. Bxd6 Qxd6 17. Bd3 Rae8 18. f4 Kh8 19. Rhe1 Bd7 20. Kb1 Qc6 21. c3 Qa4 22. Qf2 ({But not} 22. Qxd5 $6 Bc6 23. Qd6 Rd8 $11) 22... Rxe1 23. Rxe1 $40 {[%mdl 128] White attacks with force.} Re8 24. Rxe8+ Bxe8 {[%mdl 4096] Endgame KQB-KQB} 25. Bc2 {Prevents Qd1+.} (25. Bxf5 $142 {Black must now prevent Qh4.} g6 26. Bc2) 25... Qd7 26. Qe3 Kg8 27. h4 Bf7 28. Qe5 g6 29. a4 {Inhibits Qb5. White is more active.} (29. h5 {seems wilder.} gxh5 30. g3 Qe6 31. Qxe6 Bxe6 32. Bd1) 29... Qe8 $2 {[%mdl 8192] [#] Loses the game.} ({Black should play} 29... d4 $14) 30. Qxe8+ $1 $18 Bxe8 {KB-KB} 31. Bb3 Bc6 32. Kc2 Kf8 33. Kd3 d4 (33... a5 $142 34. Kd4 b6) 34. Kxd4 Bxg2 35. Ke5 Kg7 36. a5 Be4 37. Bd1 Kf7 38. b4 Bg2 39. Be2 Be4 40. c4 {[%cal Bc3c4,Bc4c5,Bc5c6][%mdl 32]} Ke7 41. b5 Bg2 42. bxa6 bxa6 43. c5 Bb7 44. Bc4 {Threatening mate with Bd5.} h6 45. Bd5 {White mates.} Bc8 46. c6 Kf8 47. Be6 {Weighted Error Value: White=0.13 (very precise) /Black=0.61} 1-0

[Event "Leca Open 2022"]
[Site "Leca da Palmeira"]
[Date "2022.08.02"]
[Round "5.7"]
[White "Perez Candelario, Manuel"]
[Black "Chua, Chee Sian Sebastien"]
[Result "1-0"]
[ECO "B12"]
[WhiteElo "2578"]
[BlackElo "2123"]
[Annotator "TA"]
[PlyCount "59"]
[EventDate "2022.08.02"]
[EventType "swiss"]
[EventCountry "POR"]
[SourceTitle "playchess.com"]
[Source "ChessBase"]
[SourceQuality "1"]
[TimeControl "5400+30"]

{[%evp 10,59,27,16,27,26,21,17,41,25,26,22,33,16,58,57,61,60,61,54,66,64,75,76,226,167,387,386,383,380,391,373,635,630,636,629,618,621,1002,1000,932,645,647,615,815,814,792,764,29988,29989,29989,29990]} 1. e4 c6 2. d4 d5 3. e5 Bf5 4. Nd2 e6 5. Nb3 Nd7 6. Nf3 Ne7 {B12: Caro-Kann: Advance Variation.} 7. Be2 h6 8. O-O g5 {The position is equal.} 9. a4 {seems to push 9.Ne1 aside.} Bg7 10. a5 Qc7 11. c3 f6 12. exf6 Bxf6 13. Ne1 {[%cal Bf3e1,Be1d3,Bd3c5][%mdl 32]} O-O-O {[%cal Oh6h5]} 14. Nd3 {[#]} h5 $146 ({Predecessor:} 14... Bxd3 15. Qxd3 e5 16. Bg4 Kb8 17. Ra4 Nc8 18. Bxd7 e4 19. Qd1 Rxd7 20. Nc5 Re7 {1-0 (37) Adams,M (2692)-Vogel,R (2459) Germany 2019}) 15. Ra4 {[%cal Ba1a4,Ba4b4,Bb4b5,Bb5c5][%mdl 32] Ndc5 is the strong threat.} Ng6 16. Ndc5 {aiming for Rb4.} Rh7 {This costs Black the game.} (16... Be7 $16) 17. Re1 e5 $2 {[#]} (17... Be7 18. Bd3 Bxc5) 18. Rb4 $1 $18 Nxc5 19. Nxc5 Qxa5 20. Qb3 {[%cal Rb4b7]} b5 {[#]} (20... Rdd7 21. Nxd7 Rxd7 22. dxe5 Nxe5) 21. Bxb5 $1 {[%mdl 512]} cxb5 22. Rxb5 Qc7 23. Na6 {[%csl LRc7,LRd5]} Qd6 24. Rc5+ Kd7 25. Qb7+ Ke8 26. Qxh7 {[%cal Od4e5] And now dxe5! would win.} Qxa6 27. dxe5 Ne7 28. Qh6 Bg6 29. exf6 Qxf6 30. Bxg5 {Weighted Error Value: White=0.19 (very precise) /Black=0.79} 1-0

[Event "Leca Open 2022"]
[Site "Leca da Palmeira"]
[Date "2022.08.02"]
[Round "5.8"]
[White "Akhvlediani, Irakli"]
[Black "Akshit Kumar J"]
[Result "1-0"]
[ECO "A45"]
[WhiteElo "2429"]
[BlackElo "2103"]
[Annotator "TA"]
[PlyCount "83"]
[EventDate "2022.08.02"]
[EventType "swiss"]
[EventCountry "POR"]
[SourceTitle "playchess.com"]
[Source "ChessBase"]
[SourceQuality "1"]
[TimeControl "5400+30"]

{[%evp 9,83,1,2,16,14,7,12,0,17,0,3,-29,25,17,44,43,99,101,106,101,100,98,108,112,131,132,162,162,151,154,160,158,165,165,187,183,273,282,268,277,279,264,271,255,266,265,253,268,260,223,309,295,365,364,368,355,394,394,394,394,613,596,631,611,1191,1039,1202,1101,12836,12836,12837,12836,12839,12839,12833,1741]} 1. d4 Nf6 2. Bf4 d5 3. e3 c5 4. Nf3 Nc6 5. Nbd2 cxd4 6. exd4 {D02: 1 d4 d5 2 Nf3 sidelines, including 2...Nf6 3 g3 and 2...Nf6 3 Bf4.} Bf5 7. c3 e6 8. Qb3 {The position is equal.} Bd6 {outshines the older 8...Qc8.} 9. Bxd6 Qxd6 10. Qxb7 {[%emt 0:32:20]} O-O {[%emt 0:21:28]} (10... Rb8 $142 11. Qa6 O-O) 11. Bb5 $11 {[%emt 0:03:35] [#]} Rfc8 $146 {[%emt 0:06:57][%cal Oa7a6]} ({Predecessor:} 11... Ne7 12. Qa6 Qf4 13. g3 Qh6 14. Nh4 Be4 15. f3 Bc2 16. Rc1 Bf5 17. Ba4 Rab8 {1-0 (41) Romanov,E (2635)-Harutyunian,T (2452) Tbilisi 2016}) 12. Qa6 {[%emt 0:27:01][%cal Of3e5] [#] Threatens to win with Ne5!} (12. Ng5 Ne7 13. Qa6 Qf4 $17) 12... Qc7 {[%emt 0:14:46] Prevents Ne5. Black is on the road to losing.} ({Better is} 12... Ne8 $14) 13. Bxc6 {[%emt 0:05:53]} Qxc6 {[%emt 0:00:37]} 14. Qxc6 {[%emt 0:00:05]} Rxc6 {[%emt 0:00:08]} 15. Ne5 {[%emt 0:00:31]} Rc7 {[%emt 0:05:39]} 16. f3 {[%emt 0:02:08]} Rb8 {[%emt 0:05:26]} 17. O-O-O Nd7 18. Nxd7 Rxd7 19. Nb3 h5 20. Nc5 {Prevents Rdb7.} Re7 21. b4 h4 22. g4 Bg6 (22... hxg3 {was necessary.} 23. hxg3 g5) 23. Rhe1 $18 Rbe8 24. f4 f6 25. Re3 e5 26. fxe5 fxe5 27. Rxe5 Rxe5 28. dxe5 Rxe5 {[%mdl 4096] Endgame [#] KRB-KRN} 29. Kd2 {Against Re2+} h3 30. Rg1 Be4 31. Re1 Re8 32. Re3 Rf8 33. Nxe4 dxe4 34. Rxh3 {KR-KR} Rf2+ (34... Rd8+ $142 35. Ke2 Rc8) 35. Ke3 {White is clearly winning.} Rxa2 36. Kxe4 Rc2 37. Kd5 Rg2 38. Kc6 Rxg4 39. Kb7 Kf7 40. Kxa7 Ke6 41. Rd3 Rg2 42. h3 {Weighted Error Value: White=0.03 (flawless) /Black=0.32} (42. b5 $142 Ra2+ 43. Kb7) 1-0

[Event "Leca Open 2022"]
[Site "Leca da Palmeira"]
[Date "2022.08.03"]
[Round "5.9"]
[White "Pandey Srishti"]
[Black "Grieve, Harry"]
[Result "1-0"]
[ECO "D35"]
[WhiteElo "2101"]
[BlackElo "2390"]
[Annotator "TA"]
[PlyCount "85"]
[EventDate "2022.08.02"]
[EventType "swiss"]
[EventCountry "POR"]
[SourceTitle "playchess.com"]
[Source "ChessBase"]
[SourceQuality "1"]
[TimeControl "5400+30"]

{[%evp 23,85,28,35,23,22,10,65,0,50,23,39,46,30,29,26,0,0,0,0,5,12,0,45,0,0,0,0,0,0,0,0,0,0,0,0,0,0,0,0,0,0,0,0,0,0,0,0,0,0,0,0,0,492,425,500,493,483,460,404,391,354,293,1520,1427]} 1. d4 Nf6 2. c4 e6 3. Nc3 d5 4. cxd5 Nxd5 5. e4 Nxc3 6. bxc3 c5 7. Nf3 cxd4 8. cxd4 Bb4+ 9. Bd2 Bxd2+ 10. Qxd2 O-O 11. Be2 Nc6 12. O-O Qd6 13. Rfd1 {[%emt 0:11:19] D41: Queen's Gambit Declined: Semi-Tarrasch with 5 cxd5.} Rd8 {[%emt 0:04:06]} 14. Qe3 {[%emt 0:01:53] [#]} Ne7 $146 {[%emt 0:06:31]} (14... h6 $11) ({Predecessor:} 14... Bd7 15. Rab1 b6 16. e5 Qe7 17. Ng5 Na5 18. Bd3 h6 19. Ne4 Bc6 20. Rbc1 Rac8 {1-0 (31) Ausmins,E (2335)-Guido,F (2354) Genova 2001}) 15. Rac1 {[%emt 0:03:35]} ({White should play} 15. Ng5 $14) 15... b6 {[%emt 0:02:21]} (15... Bd7 $11) 16. Ne5 {[%emt 0:17:05]} Bb7 {[%emt 0:04:36]} 17. Bh5 {[%emt 0:01:09]} (17. Nc4 $5 {[%cal Rc4d6]} Qd7 18. Ne5 $14) 17... Ng6 {[%emt 0:10:19]} 18. Bxg6 {[%emt 0:01:13]} hxg6 {[%emt 0:00:01]} 19. Nc4 {[%emt 0:37:08]} Qe7 {[%emt 0:19:10]} 20. a3 {[%emt 0:00:54]} b5 {[%emt 0:15:02]} 21. Na5 {[%emt 0:02:06]} Rac8 {[%emt 0:00:08]} 22. Rb1 {[%emt 0:00:05]} Ba8 {[%emt 0:04:19]} 23. f3 {[%emt 0:03:34]} Rc2 {[%emt 0:05:37]} 24. Rxb5 {[%emt 0:04:56]} Rdc8 {[%emt 0:04:11]} 25. Rc5 {[%emt 0:04:23]} R8xc5 {[%emt 0:01:55]} 26. dxc5 {[%emt 0:00:04]} Rxc5 27. Rd8+ {[%emt 0:03:42]} Kh7 {[%emt 0:03:52][%cal Oc5b5] White must now prevent ...Rb5!} 28. Nb3 {[%emt 0:01:17]} ({Of course not} 28. Rxa8 Rxa5 29. h3 Rxa3 $17) 28... Qxd8 {[%emt 0:00:23]} 29. Nxc5 $11 {[%emt 0:00:03][%mdl 4096] Endgame KQB-KQN} Bc6 {[%emt 0:02:04]} 30. h3 {[%emt 0:01:35]} g5 {[%emt 0:02:13]} 31. e5 {[%emt 0:02:41]} Kg6 {[%emt 0:02:12]} 32. Kh2 {[%emt 0:00:25]} Qb6 {[%emt 0:08:12]} 33. Qd3+ {[%emt 0:03:39]} Kh6 {[%emt 0:00:01]} 34. Qd4 {[%emt 0:00:01]} Bd5 {[%emt 0:02:16]} 35. h4 {[%emt 0:01:22]} Qd8 {[%emt 0:00:46]} 36. Nb7 {[%emt 0:02:45]} Qe7 {[%emt 0:01:49]} 37. Nd6 {[%emt 0:00:28][%cal Od4d5] Hoping for Qxd5!} gxh4 $2 {[%emt 0:00:39][%mdl 8192] [#]} (37... Kh7 $1 $11) 38. Qxd5 $3 $18 {[%emt 0:00:43][%mdl 512]} exd5 {[%emt 0:01:44]} 39. Nf5+ {[%emt 0:00:00]} Kg5 {[%emt 0:00:07]} 40. Nxe7 {[%emt 0:00:04]} d4 {[%emt 0:01:43]} 41. Kg1 {[%emt 0:01:34]} Kf4 {[%emt 0:02:10]} 42. Kf2 {[%emt 0:01:05]} g6 $2 {[%emt 0:00:00] [#]} (42... g5 43. Nc6 d3) 43. Nxg6+ $1 {[%emt 0:00:22][%mdl 512] Weighted Error Value: White=0.07 (flawless) /Black=0.24 (precise)} 1-0

[Event "Leca Open 2022"]
[Site "Leca da Palmeira"]
[Date "2022.08.02"]
[Round "5.10"]
[White "Panesar Vedant"]
[Black "Cordeiro, Joao Carlos Santos F"]
[Result "1-0"]
[ECO "D60"]
[WhiteElo "2318"]
[BlackElo "2048"]
[Annotator "TA"]
[PlyCount "59"]
[EventDate "2022.08.02"]
[EventType "swiss"]
[EventCountry "POR"]
[SourceTitle "playchess.com"]
[Source "ChessBase"]
[SourceQuality "1"]
[TimeControl "5400+30"]

{[%evp 22,59,20,20,47,37,45,49,58,56,43,35,29,36,46,45,55,25,30,25,89,77,102,110,187,170,188,125,248,235,412,250,3036,2337,29989,29990,29993,29992,29992,29993]} 1. d4 Nf6 2. Nf3 e6 3. c4 d5 4. Nc3 Be7 5. Bg5 O-O 6. e3 Nbd7 7. cxd5 exd5 8. Bd3 c6 9. Qc2 Re8 10. h3 Nf8 11. O-O g6 12. Bh6 {Recently 12.Ne5 got a lot of attention.} Ne6 {[%emt 0:20:15] D36: Queen's Gambit Declined: Exchange Variation: Main line (5 Bg5 c6 6 Qc2).} 13. Ne5 {[%emt 0:11:06]} Ng7 {[%emt 0:07:42]} 14. g4 {[%emt 0:00:09] Inhibits Bf5.} Nd7 {[%emt 0:08:28] White is slightly better.} 15. f4 {[%emt 0:03:46][%cal Bf2f4,Bf4f5,Bf5f6][%mdl 32]} Nxe5 {[%emt 0:03:01]} 16. dxe5 {[%emt 0:00:53]} Bf8 {[%emt 0:09:18]} 17. Qf2 {[%emt 0:14:24] Prevents Qh4.} Ne6 {[%emt 0:13:57]} 18. Bxf8 {[%emt 0:00:09]} Rxf8 {[%emt 0:01:16] [#]} 19. f5 $146 {[%emt 0:35:32]} ({Predecessor:} 19. Rad1 Qe7 20. e4 d4 21. Ne2 c5 22. f5 Nc7 23. Qf4 g5 24. Qh2 b6 25. h4 {1-0 (34) Stepanov,V (2263)-Bennborn,J (2189) ICCF email 2018}) 19... Nc5 {[%emt 0:04:06]} 20. Rad1 {[%emt 0:02:04][%cal Ba1d1,Bd1d3,Bd3d4][%mdl 32]} Nxd3 {[%emt 0:06:10]} (20... gxf5 $11 {remains equal.} 21. gxf5 (21. Bxf5 Bxf5 22. Qxf5 Qh4 $11) 21... Nxd3 22. Rxd3 Qc7) 21. Rxd3 $16 {[%emt 0:00:28] Black must now prevent Ne4.} b6 {[%emt 0:02:58]} 22. f6 {[%emt 0:18:18] [#] Threatens to win with Qh4. White is more active.} Qe8 {[%emt 0:03:00]} (22... h6 $16) 23. Qf4 $18 {[%emt 0:02:58] Threatening mate with Qh6.} Kh8 {[%emt 0:00:32]} 24. Re1 {[%emt 0:04:05]} ({Worse is} 24. Qh6 Rg8 25. g5 Qf8 $11) (24. Rfd1 $18) 24... Bb7 {[%emt 0:08:17]} (24... Rg8 $16 25. e4 Be6 26. exd5 cxd5) 25. e4 {[%emt 0:00:37]} (25. Qh6 Rg8 $14) 25... Qe6 $2 {[%emt 0:01:46]} (25... b5 {was worth a try.} 26. exd5 cxd5) 26. Rd4 {[%emt 0:01:23] Hoping for Qh6.} ({Less strong is} 26. Qh6 Rg8 $16) 26... Rad8 $2 {[%emt 0:01:31]} (26... Rg8 27. exd5 cxd5) 27. exd5 {[%emt 0:00:30]} Rxd5 {[%emt 0:01:44]} 28. Nxd5 {[%emt 0:00:14] White mates.} c5 {[%emt 0:01:05]} 29. Qh6 {[%emt 0:00:44][%cal Rh6f8]} Rg8 {[%emt 0:00:04] [#]} 30. Ne7 $1 {[%emt 0:00:17] Weighted Error Value: White=0.16 (very precise) /Black=0.70} 1-0

[Event "Leca Open 2022"]
[Site "Leca da Palmeira"]
[Date "2022.08.02"]
[Round "5.11"]
[White "Rego, Pedro Filipe"]
[Black "Alvarez Pampillon, Antonio"]
[Result "1-0"]
[ECO "B38"]
[WhiteElo "2251"]
[BlackElo "2019"]
[Annotator "TA"]
[PlyCount "107"]
[EventDate "2022.08.02"]
[EventType "swiss"]
[EventCountry "POR"]
[SourceTitle "playchess.com"]
[Source "ChessBase"]
[SourceQuality "1"]
[TimeControl "5400+30"]

{[%evp 21,107,35,36,36,37,42,33,36,41,39,42,45,87,87,137,124,150,150,178,167,220,208,269,271,275,265,260,242,436,325,341,343,425,423,409,411,397,402,426,191,192,185,205,191,191,182,274,237,801,794,776,765,759,751,717,708,1075,1074,806,763,5152,4626,29976,29979,29979,29980,29986,29987,29990,29988,29986,29987,29987,29988,29988,29989,29989,29990,29990,29991,29991,29992,29992,29993,29997,29998,29998,29992]} 1. e4 c5 2. Nf3 g6 3. d4 cxd4 4. Nxd4 Bg7 5. c4 Nc6 6. Be3 Nf6 7. Nc3 O-O 8. Be2 d6 9. O-O Bd7 10. h3 Nxd4 11. Bxd4 Bc6 12. Qc2 {B38: Sicilian: Maroczy Bind with 5...Bg7 and 7...0-0.} a5 13. b3 Nd7 14. Bxg7 {White is slightly better.} Kxg7 15. Rfd1 Qb6 {[#]} 16. a3 $146 ({Predecessor:} 16. Nd5 Bxd5 17. exd5 f5 18. Qc3+ Ne5 19. a3 f4 20. b4 Kg8 21. c5 Qc7 22. Bg4 {1-0 (60) Valenzuela Gomez,F (2382)-Perez Mitjans,O (2412) Barcelona 2021}) 16... Nc5 17. Rab1 f5 (17... Ne6 $142) 18. exf5 $16 gxf5 19. Nd5 Bxd5 20. Rxd5 (20. cxd5 Qd8 $16) 20... Ne4 (20... e6 {is a better defense.} 21. Qc3+ e5) 21. Bd3 $18 Rac8 22. Bxe4 fxe4 23. Re1 (23. Qxe4 $6 Qxf2+ 24. Kh1 Rc7 25. Rxa5 (25. Rh5 h6 $16) 25... Qf4 $16) 23... e6 24. Rg5+ Kf6 $2 (24... Kh8 {keeps fighting.} 25. Rxe4 e5) 25. h4 h6 26. Rg4 {Dancing on a razor blade.} d5 27. Qd2 Ke5 28. Qc3+ ({Don't play} 28. Rg6 Qxb3 29. Qxh6 Kd6 30. Rxe6+ Kc7 31. Qg7+ Kb8 32. Qe5+ Ka7 33. Qxd5 Qb2 34. Qxa5+ Kb8 35. Qe5+ Qxe5 36. Rxe5 Rxc4 37. R5xe4 b5 $18) 28... Kd6 29. Qg3+ Ke7 30. Rg7+ (30. cxd5 $142 exd5 {[#]} 31. Rgxe4+ $1 {[%mdl 512]} (31. Qe5+ Qe6 $14) 31... dxe4 32. Qg7+ Rf7 33. Rxe4+ Qe6 34. Rxe6+ Kxe6 35. Qxh6+ Ke7 36. h5) 30... Rf7 31. Rxf7+ Kxf7 {[%mdl 4096] Endgame KQR-KQR} 32. Qf4+ Ke7 33. Qxh6 Qxb3 (33... Rf8 $142 34. Qg5+ Rf6) 34. cxd5 exd5 (34... Qxd5 35. Qg7+ Kd6) 35. Qg5+ Kd6 36. Qf4+ Kd7 37. Qf5+ Kd8 38. h5 {[%cal Bh4h5,Bh5h6,Bh6h7][%mdl 32]} Qd3 39. h6 {[#] aiming for h7.} Qd2 40. Re3 {Black must now prevent Qf6+.} Rc1+ 41. Kh2 {h7 would kill now.} Qd1 42. h7 {White mates.} Qh1+ 43. Kg3 Rg1 44. Qxd5+ Kc7 45. Rc3+ Kb8 46. Qe5+ Ka7 47. Qxa5+ Kb8 48. Qd8+ Ka7 49. Qd4+ Ka6 50. Qa4+ Kb6 51. Rb3+ Kc7 52. Qa5+ Kb8 53. Qd8+ Ka7 54. Qd4+ {White took control after the opening.  Weighted Error Value: White=0.13 (very precise) /Black=0.41} 1-0